Cogmind - Beta 16 *** ADVENTURER MODE // 2025.12.30 @ 07:59:01 Player: Lukysa Result: Destroyed by S-10 Pest with Light Assault Rifle Performance ------------- Evolutions (0) 0 Regions Visited (2) 400 Robots Destroyed (41) 205 Value Destroyed (659) 659 Prototype IDs (0) 0 Alien Tech Used (0) 0 Bonus (0) 0 TOTAL SCORE: 1264 Bonus ------- None Cogmind --------- Core Integrity 0/250 Matter 187/300 Energy 220/250 System Corruption 0% Temperature Cool (0) Movement Rolling (95) Location -10/Subcaves Parts ------- > --- POWER (1) -------- Ion Engine > --- PROPULSION (2) --- Wheel Subdweller Monowheel > --- UTILITY (2) ------ Medium Storage Unit Signal Interpreter > --- WEAPON (2) ------- Medium Laser Medium Laser > --- INVENTORY (10) --- Ion Engine Ion Engine Wheel Wheel Heat Sink High-capacity Battery (250) Targeting Computer Small Laser Subdweller Shrapnel Launcher Hammer Peak State ------------ > --- POWER ------------ Ion Engine > --- PROPULSION ------- Wheel Subdweller Monowheel > --- UTILITY ---------- Medium Storage Unit Signal Interpreter > --- WEAPON ----------- Medium Laser Subdweller Shrapnel Launcher > --- INVENTORY -------- Ion Engine Ion Engine Wheel Wheel Heat Sink High-capacity Battery Targeting Computer Medium Laser Small Laser Hammer [Rating: 10] Favorites ----------- Power Ion Engine Engine Ion Engine Propulsion Wheel Wheel Wheel Utility Medium Storage Unit Device Heat Sink Storage Medium Storage Unit Processor Signal Interpreter Weapon Medium Laser Energy Gun Medium Laser Ballistic Cannon Light Cannon Launcher Subdweller Shrapnel Launcher Impact Weapon Hammer Build | -11 -10 -10 ------- Run | Yrd Mat Sub Slots Evolved . | . . . Power . | . . . Propulsion . | . . . Utility . | . . . Weapon . | . . . Parts Attached 33 | 10 21 2 Power 4 | 1 3 . Engine 4 | 1 3 . Core . | . . . Reactor . | . . . Propulsion 10 | 4 5 1 Treads . | . . . Leg . | . . . Wheel 10 | 4 5 1 Hover . | . . . Flight . | . . . Utility 9 | 2 7 . Device 5 | 2 3 . Storage 2 | . 2 . Processor 2 | . 2 . Hackware . | . . . Protection . | . . . Artifact . | . . . Weapon 10 | 3 6 1 Energy Gun 5 | 3 2 . Energy Cannon . | . . . Ballistic Gun . | . . . Ballistic Cannon 2 | . 2 . Launcher 1 | . . 1 Special Weapon . | . . . Impact Weapon 2 | . 2 . Slashing Weapon . | . . . Piercing Weapon . | . . . Special Melee Weapon . | . . . Unidentified Prototypes . | . . . Parts Lost 4 | . 4 . Power . | . . . Propulsion 3 | . 3 . Utility . | . . . Weapon 1 | . 1 . Highest Loss Streak 3 | . 3 . To Critical Strikes . | . . . Average Backups 8 | 2 8 10 Power 1 | 1 1 2 Propulsion 1 | . 1 2 Utility 1 | . 1 3 Weapon 3 | . 4 2 Tool/Special . | . . . Unused Backups 10 | . 5 5 Power 3 | . 1 2 Propulsion 2 | . 1 1 Utility 2 | . . 2 Weapon 2 | . 2 . Tool/Special 1 | . 1 . Average Slot Usage (%) 98 | . 97 99 Engine 14 | . 14 14 Wheel 27 | . 27 27 Device 7 | . 9 . Storage 13 | . 13 14 Processor 6 | . 4 14 Energy Gun 19 | . 21 15 Ballistic Cannon 2 | . 3 . Launcher 2 | . . 10 Impact Weapon 1 | . 2 1 Peak Build Rating 10 | 9 9 10 Average Rating 7 | 5 7 9 On Entrance 5 | . 9 8 Avg Prop Armor Cover (%) . | . . . Naked Turns . | . . . Heaviest Build 25 | 11 23 25 Greatest Support 32 | 32 20 30 Greatest Overweight (x) 7 | . 7 1 Average Overweight (x) . | . . . Largest Inventory Capacity 10 | 5 10 10 Average Capacity 9 | 5 9 10 Most Carried 10 | 5 10 10 Average Carried 8 | 2 8 9 Final Capacity 10 | 5 10 10 Final Carried 10 | 5 10 10 Class Distribution -------------------- 53% | Scavenger-Mutant 46% | Mutant Dominant Class ---------------- Mutant | -10/Materials Scavenger-Mutant | -10/Subcaves Resources | -11 -10 -10 ----------- Run | Yrd Mat Sub Matter Collected 726 | 290 379 57 Remotely . | . . . Salvage Created 1045 | 174 832 39 Parts 72 | 10 61 1 Haulers Intercepted 2 | . 2 . Recyclers Shooed 1 | 1 . . Parts Field Recycled . | . . . Retrieved Matter . | . . . Parts Self-Destructed 5 | . . 5 Prevented . | . . . Parts Restored . | . . . Kills | -11 -10 -10 ------- Run | Yrd Mat Sub Combat Hostiles Destroyed 23 | . 20 3 Guns 20 | . 18 2 Cannons 1 | . 1 . AOE 2 | . 1 1 Classes Destroyed 9 | 2 6 1 Worker 3 | . 3 . Builder 3 | . 3 . Tunneler 5 | 5 . . Hauler 2 | . 2 . Recycler 2 | 1 1 . Watcher 3 | . 3 . Swarmer 13 | . 12 1 Grunt 8 | . 8 . Subdweller 2 | . . 2 Best Kill Streak 7 | 4 7 2 Combat Bots Only 3 | . 3 2 Max Kills in Single Turn 1 | 1 1 1 Gunslinging . | . . . Exploded 1 | . 1 1 Melee . | . . . Uniques/NPCs Destroyed . | . . . Combat | -11 -10 -10 -------- Run | Yrd Mat Sub Hostile Shots Fired 139 | . 125 14 Missed 32 | . 29 3 Hits 107 | . 96 11 Projectile 107 | . 96 11 Critical Strikes 1 | . 1 . Damage Taken 748 | . 632 116 Core 254 | . 216 38 Absorbed by Shields . | . . . Ignored by Resistances 241 | . 207 34 Regen/Repaired (Parts) 83 | . 83 . Core Remaining (%) 100 | 100 . . Volleys Fired 95 | 10 72 13 Largest 2 | 2 2 2 Hottest 100 | 100 100 100 Shots Fired 174 | 20 134 20 Gun 159 | 20 124 15 Cannon 10 | . 10 . Launcher 5 | . . 5 Special . | . . . Kinetic 15 | . 10 5 Thermal 159 | 20 124 15 Explosive . | . . . Electromagnetic . | . . . Robot Hit Streak 16 | 13 15 16 Robot Miss Streak 4 | . 4 1 Penetration Max . | . . . Secondary Targets 6 | . 6 . Max Gunslinging Chain 1 | . 1 . Shots Hit Robots 106 | 13 80 13 Core Hits 54 | 7 40 7 Critical Kills . | . . . Critical Parts Destroyed . | . . . Critical Strikes 11 | . 10 1 Burn 11 | . 10 1 Melee Attacks 8 | . 3 5 Impact 8 | . 3 5 Slashing . | . . . Piercing . | . . . Sneak Attacks 1 | . . 1 Combat Hostiles . | . . . Follow-up Attacks . | . . . Damage Inflicted 1742 | 176 1079 487 Guns 1230 | 176 957 97 Cannons 63 | . 63 . Explosions 412 | . 53 359 Melee 31 | . . 31 Ramming 6 | . 6 . Kinetic 422 | . 63 359 Thermal 1230 | 176 957 97 Explosive . | . . . Electromagnetic 53 | . 53 . Impact 31 | . . 31 Slashing . | . . . Piercing . | . . . Highest Corruption . | . . . Average Corruption . | . . . Corruption Purged . | . . . Corruption Blocked . | . . . Overload Shots . | . . . Overflow Damage . | . . . Projectiles . | . . . Explosions . | . . . Melee . | . . . Knockbacks . | . . . Impact . | . . . Kinetic . | . . . Secondary . | . . . Self-Inflicted Damage 3 | . 3 . Shots . | . . . Rammed 2 | . 2 . Targets Rammed 2 | . 2 . Kicked . | . . . Crushed . | . . . Highest Temperature 431 | 273 431 . Average Temperature 129 | 112 132 . Received Heat Transfer 132 | . 132 . Effects 8 | 1 7 . Shutdowns 2 | . 2 . Energy Bleed 1 | 1 . . Interference 3 | . 3 . Matter Decay 1 | . 1 . Damage (minor) 1 | . 1 . Siege Activations . | . . . Martial Activations . | . . . Shielding Activations . | . . . Robots Disrupted . | . . . Combat Hostiles . | . . . Robots Corrupted . | . . . Combat Hostiles . | . . . Parts Fried . | . . . Impact Corruptions . | . . . Robots Melted 1 | . 1 . Combat Hostiles . | . . . Parts Melted 12 | 2 10 . Heat Transferred 4417 | 518 3529 370 Parts Sabotaged . | . . . Parts Stolen . | . . . Parts Stripped . | . . . Power Chain Reactions 1 | . 1 . Alert | -11 -10 -10 ------- Run | Yrd Mat Sub Maximum Alert Level 1 | . 1 . Low Security (%) 90 | 100 89 . Level 1 9 | . 10 . Level 2 . | . . . Level 3 . | . . . Level 4 . | . . . Level 5 . | . . . High Security . | . . . Max Security . | . . . Peak Influence 229 | 10 229 . Initial . | . . . Average 68 | 2 76 . Influence Increases 706 | 30 656 20 Destroy 0b10 Robot/C 420 | . 400 20 Destroy 0b10 Robot/NC 90 | 30 60 . Destroy Leader 80 | . 80 . Successful Hack 40 | . 40 . Disable Machine 54 | . 54 . Destroy Structure 7 | . 7 . Partial Spotted 15 | . 15 . Influence Decreases 706 | 30 630 46 Entered New Map 15 | . . 15 Time Decay 428 | 30 367 31 Lost Part 40 | . 40 . Purge Threat 223 | . 223 . Squads Dispatched 3 | . 3 . Investigation 3 | . 3 . Extermination . | . . . Reinforcement . | . . . Assault . | . . . Garrison . | . . . Intercept . | . . . Searches Triggered . | . . . Construction Impeded . | . . . Haulers Reinforced . | . . . Active Scanning Responses . | . . . Cargo Convoy Interrupts . | . . . Stealth | -11 -10 -10 --------- Run | Yrd Mat Sub Distress Signals 3 | . 3 . Communications Jammed . | . . . Distress Signals . | . . . Times Spotted 29 | . 23 6 Peak Tracking Total 5 | . 5 3 Tactical Retreats . | . . . Traps | -11 -10 -10 ------- Run | Yrd Mat Sub Traps Triggered 2 | . 2 . Indirectly . | . . . Trap Hack Attempts . | . . . Triggered . | . . . Disarmed . | . . . Reprogrammed . | . . . Reused . | . . . Traps Extracted . | . . . Installed . | . . . Triggered . | . . . Objects Rigged 4 | . 4 . Exploded 1 | . 1 . Machines | -11 -10 -10 ---------- Run | Yrd Mat Sub Machines Disabled 6 | . 6 . Max in Single Turn 3 | . 3 . Machines Repaired . | . . . Machines Dismantled . | . . . Machines Sabotaged . | . . . Overloaded Fab Kills . | . . . Hacking | -11 -10 -10 --------- Run | Yrd Mat Sub Machines Accessed 9 | . 9 . Terminals 7 | . 7 . Fabricators . | . . . Repair Stations 1 | . 1 . Recycling Units 1 | . 1 . Scanalyzers . | . . . Garrison Access . | . . . Total Hacks 32 | . 32 . Successful 23 | . 23 . Failed 9 | . 9 . Catastrophic 1 | . 1 . Database Lockouts . | . . . Manual 8 | . 8 . Terminals 27 | . 27 . Fabricators . | . . . Repair Stations 4 | . 4 . Recycling Units 1 | . 1 . Scanalyzers . | . . . Garrison Access . | . . . Terminal Hacks 16 | . 16 . Robot Analysis 1 | . 1 . Branch Access Points 1 | . 1 . Emergency Access Points 2 | . 2 . Alert Level 3 | . 3 . Unreport Threat 2 | . 2 . Locate Traps 1 | . 1 . Dispatch Records 1 | . 1 . Surveillance Status 1 | . 1 . Hauler Manifests 2 | . 2 . Registered Components 1 | . 1 . Zone Layout 1 | . 1 . Fabricator Hacks . | . . . Repair Station Hacks 4 | . 4 . Scan Component 2 | . 2 . Repair 2 | . 2 . Recycling Unit Hacks 1 | . 1 . Report Inventory 1 | . 1 . Scanalyzer . | . . . Garrison Access Hacks . | . . . Unauthorized Hacks 2 | . 2 . Terminals 2 | . 2 . Detonate 2 | . 2 . Fabricators . | . . . Repair Stations . | . . . Recycling Units . | . . . Scanalyzers . | . . . Garrison Access . | . . . Data Cores Recovered . | . . . Used . | . . . Hacking Detections 7 | . 7 . Full Trace Events 1 | . 1 . Feedback Events . | . . . Feedback Blocked . | . . . Robot Schematics Acquired . | . . . Robots Built . | . . . Authchips . | . . . Time . | . . . Total Robot Build Rating . | . . . Part Schematics Acquired . | . . . Parts Built . | . . . Authchips . | . . . Time . | . . . Total Part Build Rating . | . . . Part Studies Acquired . | . . . Parts Repaired 2 | . 2 . Time 52 | . 52 . Parts Recycled . | . . . Recycled Matter . | . . . Retrieved Matter . | . . . Retrieved Components . | . . . Parts Scanalyzed . | . . . Part Schematics Acquired . | . . . Parts Damaged . | . . . Bothacking | -11 -10 -10 ------------ Run | Yrd Mat Sub Used RIF Installer . | . . . Robots Hacked . | . . . Non-combat . | . . . Combat . | . . . Robot Hacks Applied . | . . . Relay Couplers Released . | . . . Fabnet Peak Effective % . | . . . Robots Rewired . | . . . Allies Hacked . | . . . Hacks Repelled . | . . . Allies | -11 -10 -10 -------- Run | Yrd Mat Sub Total Allies . | . . . Largest Group . | . . . Highest-Rated Group . | . . . Highest-Rated Ally . | . . . Total Orders . | . . . Ally Attacks . | . . . Total Damage . | . . . Kills . | . . . Allies Corrupted . | . . . Allies Melted . | . . . Intel | -11 -10 -10 ------- Run | Yrd Mat Sub Active Infowar (turns) 417 | 36 381 . Optics 132 | . 132 . Sensors 53 | . 53 . Terrain 47 | 21 26 . Structural 170 | . 170 . Seismic 136 | 36 100 . Robot Analysis Total 1 | . 1 . Derelict Logs Recovered . | . . . Drone Launches . | . . . Drone Recoveries . | . . . Exploration | -11 -10 -10 ------------- Run | Yrd Mat Sub Turns Passed 1377 | 118 908 351 Spaces Moved 1099 | 77 703 319 Core 2 | 1 1 . Treads . | . . . Legs . | . . . Wheels 1097 | 76 702 319 Hover . | . . . Flight . | . . . Fastest Speed 50 | 50 80 80 Average Speed 85 | 87 82 91 Slowest Speed 400 | 100 400 95 Overloaded Moves . | . . . Propulsion Burnouts . | . . . Robots Hopped . | . . . Potential Cave-ins . | . . . Cave-ins Triggered . | . . . Exploration Rate (%) 42 | 4 86 37 Regions Visited 2 Branch Regions 1 Pre-discovered Areas . | . . . Known Exits Taken 1 | . 1 . Unknown Exits Taken 1 | 1 . . Scrap Searched . | . . . Spaces Dug . | . . . Terrain Destroyed 59 | . 2 57 Melee . | . . . Projectile . | . . . AOE 59 | . 2 57 Terrain Rammed . | . . . Walls Destroyed . | . . . Machines Disabled . | . . . Actions | -11 -10 -10 --------- Run | Yrd Mat Sub Total 1347 | 103 895 349 Wait 45 | . 45 . Move 1097 | 76 702 319 Hop . | . . . Pick Up 25 | 5 19 1 Fast Attach 19 | 7 9 3 Attach 6 | . 6 . Detach 2 | . 2 . Swap 21 | 3 14 4 Drop 27 | 2 21 4 Fire 95 | 10 72 13 Melee 8 | . 3 5 Ram 2 | . 2 . Kick . | . . . Crush . | . . . Escape Stasis . | . . . Rewire . | . . . Trap . | . . . Miscellaneous . | . . . Route ------- -11/Scrapyard -10/Materials (discovered 5 exits: *Mat x3 / *Min / *Sub) -10/Subcaves (discovered 1 exit: *Mat) History --------- Turn | Location | Event 16 | -11/Scrapyard | Discovered new exit (range 15) 119 | -11/Scrapyard | Entered Materials 225 | -10/Materials | Discovered new exit (range 7) 434 | -10/Materials | Discovered new exit (range 17) 487 | -10/Materials | Discovered new exit (range 9) 488 | -10/Materials | Identified exit to Mines 572 | -10/Materials | Core integrity fell below 50% 640 | -10/Materials | Lost 3 parts (2n1w) 641 | -10/Materials | Discovered new exit (range 20) 681 | -10/Materials | Repaired Med. Laser 709 | -10/Materials | Repaired Med. Laser 714 | -10/Materials | Core integrity fell below 20% 900 | -10/Materials | Identified exit to Materials 963 | -10/Materials | Discovered new exit (range 11) 970 | -10/Materials | Identified exit to Subcaves 1027 | -10/Materials | Entered Subcaves 1073 | -10/Subcaves | Discovered new exit (range 7) 1080 | -10/Subcaves | Identified exit to Materials 1258 | -10/Subcaves | A swath of the cavern ceiling suddenly collapsed 1378 | -10/Subcaves | Destroyed by S-10 Pest with Light Assault Rifle Last Messages --------------- Sink. 01107_ Acquired Sub. Shrapnel Launcher. 01109_ Acquired 10 matter. 01112_ Dropped Wheel. 01113_ Acquired Sub. Monowheel. 01116_ Acquired 10 matter. A swath of the cavern ceiling suddenly collapses. 01302_ Sneak attack on LW-OAB(O). 01315_ 8Q-GA0(R) destroyed. 01328_ Destroyed Scrap Shield. 01331_ MO-8TZ(R) destroyed. 01347_ Acquired 17 matter. 01354_ Subatomizers dissect the Disposable Heat Sink. [Achievement: Art Critic] 01369_ Subatomizers dissect the Disposable Heat Sink, destroying it. 01375_ Sub. Shrapnel Launcher shoots sparks and powers down. Map ----- +----------------------------------------------------+ | ?????????????????????????????????????????????????? | | ?????????????????????????????????????????????????? | | ?????????????????????????????????????????????????? | | ?????????????????????????????????????????????????? | | ?????????????????????????????????????????????????? | | ?????????????????????????????????????????????????? | | ?????????????????????????????????????????????????? | | ?????????????????????????????????????????????????? | | ?????????????????????????????????????????????????? | | ?????????????????????????????????????????????????? | | ?????????????????????????????????????????????????? | | ?????????????????????????????????????????????????? | | ?????????????????????????????????????????????????? | | ?????????????## ?????????????????????????????????? | | ???????????### ???##??###??????????????????????? | | ???????????# ??? ## ##?????????????????????? | | ??????????? ???? ?????????????????????? | | ???????????? ???? ??????????????????????? | | ???? ??????? ???? ???????????????????????? | | ??? ??????# ????# #???????????????????????? | | ??? ?????## #????# #???????????????????????? | | ??? ????# ###?## #??####?????????????????? | | ????? #?#### ### #??# ######## ?????????? | | ??????# ## ## ## ### ????????? | | ???????# ## ????????? | | ???????## @ ????????? | | ???????# ## ## ##????????????? | | ???????# # ###% #????????????????? | | ???????# # ###] #????????????????? | | ????????# # #????????????????? | | ???????## # ## ##s #???????????????? | | ??????## # ### s ?s## ??????????????? | | ?????##" "# #?# #? #?### ?????????????? | | ?????#"" % "# ##? ? ????? ???????????? | | ?????## ""# ##?? ?? ?????? ???????????? | | ?????# ## ##??? ?? ?????? ????????????? | | ?????#" ####???#### ?? ???????????????????? | | ????### #?????????????##??????????????????? | | ?#### # #?????????????????????????????????? | | ?# " ##????????????????????????????????? | | ## ###??????????????????????????????? | | # #??????????????????????????????? | | ## ##??????????????????????????????? | | ?## #???????????????????????????????? | | ??# #???? ??????????????????????????? | | ??# #??? #??????????????????????????? | | ??# #?? ##?????????????????????????? | | ??## "#?? ##????????????????????????? | | ???## #? ?????????????????????????? | | ????### ## ??????????????????????????? | +----------------------------------------------------+ Best States ------------- Heat Dissipation 35 Energy Generation 10 Energy Capacity 500 Matter Stores 300 Matter Capacity 300 Sight Range 18 Robot Scan Range 14 Terrain Scan Range 16 Terrain Scan Density 10 Resistance: KI 20 Resistance: TH 20 Resistance: EX 20 Resistance: EM 20 Resistance: I 20 Resistance: S 20 Resistance: P 20 Evasion (%) 44 Offensive Hacking 10 Item Schematics ----------------- None Robot Schematics ------------------ None Fabricated ------------ Nothing Repaired ---------- Med. Laser | 18% | -10/Materials Med. Laser | 62% | -10/Materials Studied --------- None Alien Tech Used ----------------- None Achievements -------------- Art Critic Challenges ------------ None Game ------ Seed SubatomicAlertSpecial Manual? 0 Play Time 00:22:26 Cumulative 102.4 hours Start 2025.12.30 @ 07:38:15 End 2025.12.30 @ 07:59:01 Sessions 1 Manual Loads 0 Difficulty Adventurer Special Mode None Game No. 57 Rogue 29 Adventurer 28 Explorer 0 Win Type - Total 0 Types 0/0/0/0/0/0/0/0/0/0 Lore% 46 Gallery% 46 Achievement% 33 Wizard Run 0 Options --------- Layout 1 ASCII 0 Keyboard 0 Movement Mouse Keybinds 0 Fullscreen 2 Font 32/SmallcapsGlow Map View 50x35 Zoom Use 0% Tactical HUD 1 Map Filters NONE Filters NONE Steam 1 RUN: 77c6990d-ee51-4fa4-80ad-240b9b097ce4